bitfinex-derivatives/quotes_SOLF0:USTF0_20241120
["timestamp","ask_amount","ask_price","bid_price","bid_amount"]
[1732128626022,16.85743877,233.29,233.17,2.6537]
[1732128626226,0.72626716,233.28,233.17,2.6537]
[1732128626520,2.1416,233.2,233.17,2.6537]
[1732128626714,16.85743877,233.29,233.17,2.6537]
[1732128627316,2.1417,233.19,233.17,2.6537]
[1732128627916,19.00341697,233.25,233.12,2.606]
[1732128628220,16.85743877,233.25,233.1,3.2]
[1732128628420,2.1423,233.13,233.09,5.1835]
[1732128629118,2.1421,233.15,233.09,5.1835]
[1732128629322,16.85743877,233.25,233.1,2.4478]
[1732128630922,2.1417,233.19,233.11,2.1423]
[1732128631126,2.1417,233.19,233.1,2.4478]
[1732128631328,2.1417,233.19,233.11,2.1424]
[1732128631625,3.22,233.26,233.11,12.73075362]
[1732128631626,13.80835362,233.26,233.11,12.73075362]
[1732128631924,2.1109558,233.25,233.11,12.73075362]
[1732128632127,2.1418,233.18,233.11,10.58835362]
[1732128633222,2.1418,233.18,233.11,12.73075362]
[1732128633430,10.58835362,233.26,233.11,10.58835362]
[1732128633721,10.58835362,233.26,233.13,2.1422]
[1732128633929,10.58835362,233.26,233.13,3.22]
[1732128634229,10.58835362,233.29,233.16,2.1419]
[1732128634528,3.22,233.34,233.17,10.58835362]
[1732128634723,10.58835362,233.32,233.17,10.58835362]
[1732128634925,2.1413,233.23,233.17,10.58835362]
[1732128635229,10.58835362,233.29,233.14,10.58835362]
[1732128635927,2.1414,233.23,233.15,2.1419]
[1732128636125,10.58835362,233.29,233.14,10.58835362]
[1732128637224,0.72614599,233.33,233.13,3.22]
[1732128637225,10.58835362,233.26,233.13,3.22]
[1732128637626,2.1414,233.23,233.13,5.3622]
[1732128637831,10.58835362,233.26,233.13,5.3622]
[1732128638530,2.1416,233.2,233.13,5.3622]
[1732128638732,10.58835362,233.29,233.14,10.58835362]
[1732128639224,2.1416,233.2,233.14,10.58835362]
[1732128639731,2.1417,233.19,233.14,10.58835362]
[1732128640028,0.72614599,233.33,233.13,3.22]
[1732128640029,10.58835362,233.23,233.13,3.22]
[1732128640930,2.14398989,233.25,233.13,3.22]
[1732128641331,10.58835362,233.23,233.13,3.22]
[1732128641629,12.70534274,233.23,233.13,3.22]
[1732128642629,10.58835362,233.2,233.1,2.4478]
[1732128642828,10.58835362,233.2,233.02,10.58835362]
[1732128642829,10.58835362,233.17,233.02,10.58835362]
[1732128643028,10.58835362,233.14,232.99,10.58835362]
[1732128643227,2.1427,233.08,233.0,5.3434]
[1732128643436,2.1427,233.08,233.0,3.2]
[1732128643823,10.58835362,233.11,232.97,7.7238]
[1732128644027,10.58835362,233.08,232.97,7.7238]
[1732128645535,2.1432,233.02,232.97,7.7238]
[1732128645733,10.58835362,233.08,232.97,7.7238]
[1732128646027,2.1433,233.02,232.97,7.7238]
[1732128646227,10.58835362,233.02,232.82,3.2]
[1732128646428,3.2,233.03,232.85,10.58835362]
[1732128646429,10.58835362,232.99,232.85,10.58835362]
[1732128646830,2.1439,232.95,232.85,12.73305362]
[1732128647031,10.58835362,232.99,232.85,12.73305362]
[1732128647233,10.58835362,232.99,232.84,3.2]
[1732128647430,10.58835362,232.99,232.85,2.1447]
[1732128647738,10.58835362,232.95,232.83,7.8377]
[1732128647937,2.1443,232.91,232.83,20.57105362]
[1732128648139,15.96876991,232.98,232.83,18.42605362]
[1732128648540,12.76876991,232.98,232.84,2.1449]
[1732128648738,2.18041629,232.98,232.84,2.1449]
[1732128649132,2.18041629,232.98,232.83,7.8377]
[1732128649133,2.1443,232.91,232.83,7.8377]
[1732128649537,3.2,232.99,232.83,7.8377]
[1732128649738,16.98118652,233.04,232.84,3.2]
[1732128649936,3.2,233.03,232.85,16.98118652]
[1732128650135,2.1434,233.01,232.93,2.144]
[1732128650340,16.98118652,233.08,232.91,3.2]
[1732128650737,16.98118652,233.08,232.95,2.1439]
[1732128650937,16.98118652,233.08,232.91,3.2]
[1732128651539,16.98118652,233.12,232.93,16.98118652]
[1732128651840,16.98118652,233.12,232.94,7.6104]
[1732128652040,16.98118652,233.08,232.94,7.6104]
[1732128652746,16.98118652,233.08,232.94,9.7543]
[1732128653344,2.1434,233.0,232.94,7.6104]
[1732128653547,16.98118652,233.04,232.94,7.6104]
[1732128654041,16.98118652,233.04,232.94,5.063]
[1732128654640,2.1437,232.97,232.94,5.063]
[1732128654837,16.98118652,233.0,232.86,2.5474]
[1732128655041,16.98118652,233.0,232.87,4.9117]
[1732128655343,2.144,232.95,232.87,4.9117]
[1732128655842,2.144,232.95,232.88,2.1445]
[1732128656042,16.98118652,233.0,232.87,4.9117]
[1732128656243,16.98118652,232.96,232.87,4.9117]
[1732128656636,2.1444,232.9,232.87,4.9117]
[1732128656944,16.98118652,232.92,232.81,2.1451]
[1732128657240,16.98118652,232.92,232.8,3.22]
[1732128657641,16.98118652,232.88,232.74,10.6548]
[1732128658537,16.98118652,232.88,232.75,2.1457]
[1732128659041,2.1453,232.8,232.75,2.1457]
[1732128659241,16.98118652,232.88,232.74,10.6548]
[1732128659242,20.20118652,232.88,232.74,10.6548]
[1732128659743,2.1454,232.78,232.74,5.0191]
[1732128660348,16.98118652,232.84,232.74,5.0191]
[1732128660543,16.98118652,232.8,232.71,3.22]
[1732128662551,16.98118652,232.8,232.68,5.0295]
[1732128662850,16.98118652,232.76,232.58,2.505]
[1732128663153,2.12737617,232.8,232.6,4.6326]
[1732128663154,2.1464,232.68,232.6,4.6326]
[1732128663351,16.98118652,232.68,232.6,2.4856]
[1732128663555,16.98118652,232.68,232.59,2.6729]
[1732128664252,16.98118652,232.68,232.53,2.4452]
[1732128664451,16.98118652,232.68,232.53,5.1181]
[1732128665852,16.98118652,232.68,232.54,2.1476]
[1732128666048,16.98118652,232.68,232.53,5.1181]
[1732128666953,16.98118652,232.68,232.55,2.1475]
[1732128667249,16.98118652,232.68,232.53,5.1181]
[1732128667449,16.98118652,232.72,232.53,5.1181]
[1732128667849,2.1467,232.65,232.53,5.1181]
[1732128668054,19.17084031,232.72,232.53,5.1181]
[1732128668253,19.17126986,232.76,232.55,16.98118652]
[1732128668454,16.98118652,232.76,232.55,16.98118652]
[1732128668651,2.1462,232.7,232.61,2.147]
[1732128668851,19.15752412,232.76,232.61,3.2]
[1732128669058,16.98118652,232.72,232.54,3.2]
[1732128669248,16.98118652,232.68,232.54,3.2]
[1732128669449,16.98118652,232.72,232.54,20.18118652]
[1732128669650,16.98118652,232.76,232.54,20.18118652]
[1732128669848,2.1461,232.71,232.54,20.18118652]
[1732128670059,16.98118652,232.76,232.58,16.98118652]
[1732128670555,16.98118652,232.76,232.54,16.98118652]
[1732128670755,16.98118652,232.72,232.55,3.2]
[1732128670954,20.18118652,232.72,232.55,3.2]
[1732128671249,16.98118652,232.68,232.55,3.2]
[1732128671453,2.1467,232.65,232.55,5.3476]
[1732128671660,16.98118652,232.68,232.55,3.2]
[1732128672155,2.1469,232.62,232.55,3.2]
[1732128672364,16.98118652,232.68,232.55,3.2]
[1732128672559,2.1467,232.64,232.57,2.1474]
[1732128672860,16.98118652,232.68,232.55,3.2]
[1732128673158,16.98118652,232.72,232.55,3.2]
[1732128674258,2.1468,232.63,232.55,3.2]
[1732128674660,2.12024834,232.74,232.55,3.2]
[1732128674661,16.98118652,232.68,232.55,3.2]
[1732128674955,20.18118652,232.68,232.53,5.1181]
[1732128675156,16.98118652,232.64,232.53,5.1181]
[1732128675361,16.98118652,232.64,232.48,3.2]
[1732128675659,16.98118652,232.56,232.45,7.5184]
[1732128676057,2.1479,232.51,232.45,7.5184]
[1732128676562,2.1477,232.54,232.48,2.1482]
[1732128676963,16.98118652,232.6,232.45,7.5184]
[1732128677260,2.1476,232.55,232.45,7.5184]
[1732128677562,16.98118652,232.6,232.45,7.5184]
[1732128677763,2.1475,232.56,232.49,2.1481]
[1732128677964,16.98118652,232.6,232.49,2.1481]
[1732128678360,2.1476,232.55,232.49,2.1481]
[1732128678660,2.1476,232.55,232.5,2.148]
[1732128678864,16.98118652,232.6,232.47,3.22]
[1732128679159,2.1475,232.56,232.47,3.22]
[1732128679459,16.98118652,232.6,232.47,3.22]
[1732128679657,2.1475,232.56,232.51,2.1479]
[1732128680260,2.1476,232.55,232.47,3.22]
[1732128680457,16.98118652,232.6,232.49,2.148]
[1732128680762,16.98118652,232.64,232.49,3.22]
[1732128680962,16.98118652,232.6,232.5,2.1479]
[1732128681158,16.98118652,232.6,232.49,3.22]
[1732128681469,16.98118652,232.56,232.45,7.5184]
[1732128681665,16.98118652,232.56,232.45,5.091]
[1732128681962,16.98118652,232.52,232.37,5.0728]
[1732128682165,16.98118652,232.52,232.38,3.22]
[1732128682863,10.65881621,232.46,232.38,3.22]
[1732128683059,10.65881621,232.46,232.38,2.1491]
[1732128683259,10.65881621,232.46,232.37,8.3411]
[1732128683558,2.1487,232.43,232.37,10.4903]
[1732128683759,10.65881621,232.49,232.37,8.3411]
[1732128683965,2.1482,232.49,232.37,18.99991621]
[1732128684265,10.65881621,232.55,232.41,10.65881621]
[1732128684461,10.65881621,232.55,232.42,2.6029]
[1732128684661,2.1478,232.52,232.42,2.6029]
[1732128685463,2.1476,232.55,232.42,2.6029]
[1732128685669,17.03796843,232.63,232.44,17.03796843]
[1732128685976,17.03796843,232.63,232.45,3.22]
[1732128686164,2.1473,232.59,232.55,2.1475]
[1732128686364,17.03796843,232.67,232.54,3.22]
[1732128686871,2.1468,232.63,232.54,3.22]
[1732128687069,49.72679885,232.8,232.54,3.22]
[1732128687070,17.03796843,232.71,232.54,3.22]
[1732128687274,2.1463,232.69,232.59,2.1471]
[1732128687570,17.03796843,232.75,232.6,5.2133]
[1732128687768,2.1463,232.69,232.62,2.1468]
[1732128688069,2.1463,232.69,232.61,3.22]
[1732128688364,2.1465,232.67,232.61,5.367]
[1732128688570,17.03796843,232.71,232.6,5.2133]
[1732128688771,17.03796843,232.71,232.6,8.4333]
[1732128688970,2.1467,232.65,232.6,8.4333]
[1732128689171,17.86730843,232.8,232.57,3.22]
[1732128689172,17.03796843,232.67,232.57,3.22]
[1732128689669,2.147,232.61,232.57,3.22]
[1732128689870,17.03796843,232.67,232.57,3.22]
[1732128690065,2.1469,232.63,232.57,5.3673]
[1732128690473,17.03796843,232.67,232.57,3.22]
[1732128690766,2.1468,232.64,232.59,2.1471]
[1732128691174,17.03796843,232.75,232.57,3.22]
[1732128691575,20.25796843,232.79,232.6,17.03796843]
[1732128691768,20.25796843,232.79,232.61,5.1896]
[1732128692171,2.1459,232.73,232.68,2.1464]
[1732128692672,0.82934,232.8,232.66,3.22]
[1732128692870,0.82934,232.8,232.68,17.03796843]
[1732128693579,0.82934,232.8,232.69,2.5027]
[1732128694274,0.82934,232.8,232.78,2.1454]
[1732128694475,0.82934,232.8,232.79,3.22]
[1732128695276,17.03796843,232.92,232.79,3.22]
[1732128695872,31.84291301,232.95,232.79,3.22]
[1732128696277,17.03796843,233.0,232.8,17.03796843]
[1732128696672,2.1433,233.01,232.94,2.1439]
[1732128696880,253.60066808,233.08,232.95,3.2]
[1732128697075,236.56269965,233.08,232.96,3.2]
[1732128697279,236.56269965,233.08,233.02,2.1432]
[1732128697476,236.56269965,233.08,233.03,3.2]
[1732128697979,236.56269965,233.08,232.98,3.2]
[1732128698180,236.56269965,233.08,232.97,3.2]
[1732128698181,253.60066808,233.08,232.97,3.2]
[1732128698378,2.143,233.05,232.97,3.2]
[1732128698681,236.56269965,233.08,232.97,3.2]
[1732128699581,2.143,233.05,232.97,3.2]
[1732128699783,27.5607085,233.09,232.97,3.2]
[1732128699975,27.5607085,233.13,232.97,3.2]
[1732128700374,27.5607085,233.09,232.97,3.2]
[1732128700582,27.5607085,233.09,232.91,3.2]
[1732128701288,3.2,233.13,232.91,3.2]
[1732128701492,27.5607085,233.11,232.91,3.2]
[1732128701786,0.8606,233.16,232.98,27.5607085]
[1732128702086,0.8606,233.16,232.99,3.2]
[1732128702280,2.143,233.05,233.0,3.2]
[1732128702485,27.5607085,233.15,233.0,3.2]
[1732128702686,27.5607085,233.11,233.0,3.2]
[1732128702980,2.1432,233.03,232.95,2.6416]
[1732128703184,3.2,233.14,232.96,3.2]
[1732128703382,27.5607085,233.11,232.96,3.2]
[1732128703886,2.1428,233.07,232.96,5.3437]
[1732128704186,3.2,233.14,232.96,3.2]
[1732128704384,0.72680074,233.13,232.96,3.2]
[1732128704580,3.2,233.14,232.96,3.2]
[1732128705280,27.5607085,233.15,232.96,3.2]
[1732128705479,0.72674751,233.14,232.99,2.1435]
[1732128705675,27.5607085,233.15,232.96,3.2]
[1732128705879,2.1425,233.1,233.01,2.1432]
[1732128706077,27.5607085,233.15,232.96,3.2]
[1732128706288,0.72671508,233.14,232.96,3.2]
[1732128706785,2.1425,233.1,233.03,2.1431]
[1732128706985,2.1425,233.1,233.04,3.2]
[1732128707583,2.1425,233.1,233.05,3.2]
[1732128707779,0.8606,233.16,233.05,3.2]
[1732128707981,28.28738957,233.15,232.98,3.2]
[1732128708185,0.72668107,233.14,232.98,3.2]
[1732128708382,2.1433,233.02,232.95,4.7855]
[1732128708683,0.72668107,233.14,232.95,4.7855]
[1732128708684,27.5607085,233.15,232.96,3.2]
[1732128708991,2.1426,233.1,232.99,2.1435]
[1732128709184,27.5607085,233.15,232.96,3.2]
[1732128709386,0.8606,233.16,232.96,3.2]
[1732128709589,27.5607085,233.19,233.01,27.5607085]
[1732128709782,6.23029722,233.22,233.02,5.15]
[1732128709990,2.1429,233.06,232.99,2.1435]
[1732128710182,27.5607085,233.15,232.96,8.35]
[1732128710388,27.5607085,233.15,232.98,27.5607085]
[1732128711087,6.22263918,233.22,232.98,27.5607085]
[1732128711088,27.5607085,233.19,232.98,27.5607085]
[1732128711286,27.5607085,233.19,233.02,27.5607085]
[1732128711483,2.1423,233.13,233.06,2.1428]
[1732128711688,2.1423,233.13,233.03,3.2]
[1732128711884,0.8551,233.22,233.03,3.2]
[1732128712192,27.5607085,233.27,233.06,27.5607085]
[1732128712391,0.72639396,233.26,233.07,2.4375]
[1732128712694,27.5607085,233.23,233.07,2.4375]
[1732128713090,27.5607085,233.27,233.07,2.4375]
[1732128713287,27.5607085,233.27,233.08,5.1109]
[1732128713989,27.5607085,233.27,233.1,27.5607085]
[1732128714195,35.1801,233.37,233.08,5.1109]
[1732128714196,27.5607085,233.35,233.14,27.5607085]
[1732128714392,0.72635146,233.34,233.18,27.5607085]
[1732128714694,27.5607085,233.35,233.19,3.2]
[1732128714889,0.72610444,233.34,233.19,3.2]
[1732128715196,2.1408,233.29,233.23,2.1412]
[1732128715493,27.5607085,233.39,233.22,27.5607085]
[1732128715693,0.72604293,233.38,233.22,27.5607085]
[1732128715890,0.72604293,233.43,233.22,27.5607085]
[1732128716085,0.72599315,233.42,233.22,27.5607085]
[1732128716286,27.5607085,233.44,233.22,27.5607085]
[1732128716486,27.5607085,233.44,233.26,27.5607085]
[1732128716688,0.854,233.45,233.27,3.2]
[1732128717196,0.854,233.45,233.26,27.5607085]
[1732128717397,27.5607085,233.44,233.27,3.2]
[1732128718096,27.5607085,233.44,233.28,2.1408]
[1732128718296,27.5607085,233.44,233.27,3.2]
[1732128718690,17.77022974,233.45,233.22,16.91622974]
[1732128718890,0.72576324,233.44,233.23,3.2]
[1732128719290,2.1399,233.39,233.26,2.141]
[1732128719492,17.77022974,233.45,233.26,2.141]
[1732128719898,17.77022974,233.45,233.27,2.1409]
[1732128720298,16.91622974,233.41,233.22,16.91622974]
[1732128720500,16.91622974,233.41,233.23,3.2]
[1732128720702,16.91622974,233.37,233.22,3.2]
[1732128720896,16.91622974,233.33,233.22,3.2]
[1732128721095,16.91622974,233.29,233.17,3.2]
[1732128721295,16.91622974,233.29,233.09,7.6418]
[1732128721595,16.91622974,233.25,233.09,9.7844]
[1732128721797,16.91622974,233.25,233.09,7.6418]
[1732128721998,16.91622974,233.25,233.1,3.2]
[1732128722195,16.91622974,233.25,233.17,0.3845]
[1732128722403,16.91622974,233.21,233.1,3.2]
[1732128722600,27.54605908,233.21,233.06,3.2]
[1732128722908,2.1423,233.12,233.06,3.2]
[1732128723104,27.54605908,233.21,233.06,3.2]
[1732128723600,3.2,233.23,233.06,3.2]
[1732128723807,0.72643671,233.22,233.07,2.5868]
[1732128724002,0.72643671,233.22,233.09,27.54605908]
[1732128724203,27.54605908,233.25,233.09,27.54605908]
[1732128724403,2.142,233.16,233.08,2.1426]
[1732128724805,2.142,233.16,233.07,5.0896]
[1732128725505,27.54605908,233.29,233.09,27.54605908]
[1732128725804,0.72635593,233.28,233.09,27.54605908]
[1732128726308,2.1417,233.19,233.13,2.1422]
[1732128726505,27.54605908,233.29,233.14,3.2]
[1732128726707,233.2785,233.46,233.17,27.54605908]
[1732128726907,0.72613096,233.39,233.17,27.54605908]
[1732128727406,2.1406,233.31,233.24,2.1412]
[1732128727601,28.01515908,233.4,233.25,3.2]
[1732128728102,0.72588876,233.39,233.25,3.2]
[1732128728302,0.72588876,233.39,233.25,30.74605908]
[1732128728709,2.1402,233.35,233.27,2.1409]
[1732128728906,27.54605908,233.44,233.25,30.74605908]
[1732128729107,2.1404,233.33,233.26,5.341]
[1732128729411,27.54605908,233.44,233.26,3.2]
[1732128729604,0.72579505,233.43,233.26,3.2]
[1732128729801,27.54605908,233.44,233.26,3.2]
[1732128730005,0.72581222,233.43,233.26,3.2]
[1732128730710,0.72581222,233.42,233.29,27.54605908]
[1732128731004,0.4691,233.49,233.29,27.54605908]
[1732128731005,2.1401,233.38,233.29,27.54605908]
[1732128731210,0.4691,233.49,233.33,27.54605908]
[1732128731412,2.1398,233.42,233.36,2.1403]
[1732128731706,2.1398,233.42,233.34,3.2]
[1732128732307,27.54605908,233.53,233.34,3.2]
[1732128732610,27.54605908,233.45,233.25,27.54605908]
[1732128732814,27.54605908,233.41,233.26,3.2]
[1732128733007,27.54605908,233.37,233.26,3.2]
[1732128733207,27.54605908,233.37,233.2,3.2]
[1732128733413,2.1407,233.32,233.2,5.3417]
[1732128733713,30.74605908,233.37,233.2,3.2]
[1732128733907,2.1407,233.32,233.2,3.2]
[1732128734102,27.54605908,233.33,233.2,3.2]
[1732128734711,27.54605908,233.33,233.16,5.0873]
[1732128734915,27.54605908,233.29,233.16,5.0873]
[1732128735413,2.1416,233.23,233.16,5.0873]
[1732128735609,27.54605908,233.29,233.16,5.0873]
[1732128735908,2.1417,233.22,233.16,5.0873]
[1732128736107,27.54605908,233.29,233.16,5.0873]
[1732128736510,27.54605908,233.29,233.12,3.2]
[1732128736713,27.54605908,233.25,233.09,3.2]
[1732128736910,27.54605908,233.2,233.01,27.54605908]
[1732128737116,27.54605908,233.2,233.02,3.2]
[1732128737414,3.2,233.22,233.05,27.54605908]
[1732128737611,28.01205908,233.24,233.1,2.1427]
[1732128737612,2.1418,233.2,233.1,2.1427]
[1732128737909,28.01205908,233.24,233.1,3.2]
[1732128738110,0.466,233.24,233.11,2.1426]
[1732128738317,28.54605908,233.28,233.1,3.2]
[1732128738318,27.54605908,233.28,233.1,3.2]
[1732128738615,3.2,233.31,233.13,27.54605908]
[1732128738816,27.54605908,233.32,233.18,2.1419]
[1732128739111,0.466,233.35,233.17,30.74605908]
[1732128739412,0.72621976,233.34,233.17,30.74605908]
[1732128739611,0.466,233.35,233.17,30.74605908]
[1732128739806,2.1411,233.28,233.21,2.1416]
[1732128740009,0.72605309,233.34,233.17,3.2]
[1732128740207,27.54605908,233.32,233.17,3.2]
[1732128740407,2.1411,233.28,233.17,3.2]
[1732128740612,27.54605908,233.32,233.17,3.2]
[1732128741116,27.54605908,233.32,233.15,2.5709]
[1732128741117,2.1417,233.21,233.15,2.5709]
[1732128741310,27.54605908,233.28,233.14,5.1177]
[1732128741513,27.54605908,233.24,233.12,3.2]
[1732128742417,27.54605908,233.28,233.12,3.2]
[1732128742619,0.7263031,233.27,233.12,3.2]
[1732128743010,27.54605908,233.32,233.12,3.2]
[1732128743317,0.72624038,233.31,233.13,27.54605908]
[1732128743521,0.72624038,233.31,233.17,27.54605908]
[1732128743710,2.1412,233.26,233.19,2.1418]
[1732128744017,3.2,233.34,233.2,3.2]
[1732128744212,0.72609868,233.33,233.2,3.2]
[1732128744410,0.72609868,233.33,233.21,2.1417]
[1732128744809,3.2,233.34,233.21,2.1417]
[1732128745013,2.141,233.29,233.21,2.1417]
[1732128745320,16.92894375,233.37,233.21,16.92894375]
[1732128745511,2.1407,233.32,233.22,2.5521]
[1732128746014,2.1404,233.35,233.24,2.1413]
[1732128746210,16.92894375,233.41,233.22,2.5521]
[1732128746609,0.72587384,233.4,233.26,16.92894375]
[1732128746811,7.81643289,233.44,233.3,16.92894375]
[1732128747009,3.2,233.48,233.3,16.92894375]
[1732128747218,0.72578956,233.43,233.31,2.5571]
[1732128747520,0.72578956,233.47,233.31,5.1118]
[1732128747814,2.1397,233.44,233.36,2.1403]
[1732128748024,0.4657,233.51,233.37,3.2]
[1732128748211,16.92894375,233.53,233.37,3.2]
[1732128748418,3.2,233.56,233.37,3.2]
[1732128748918,2.139,233.51,233.39,2.14]
[1732128749119,3.2,233.56,233.37,3.2]
[1732128749318,16.92894375,233.53,233.37,3.2]
[1732128749719,7.81378677,233.52,233.37,3.2]
[1732128750115,2.1393,233.48,233.37,3.2]
[1732128750319,7.81378677,233.52,233.37,3.2]
[1732128750619,7.81378677,233.52,233.35,2.4054]
[1732128750620,27.48692278,233.46,233.35,2.4054]
[1732128750816,2.14,233.4,233.35,2.4054]
[1732128751015,27.48692278,233.46,233.31,2.5571]
[1732128751216,2.1398,233.42,233.31,2.5571]
[1732128751413,27.48692278,233.42,233.31,2.5571]
[1732128751611,27.48692278,233.42,233.29,3.2]
[1732128751819,2.1409,233.3,233.29,3.2]
[1732128752222,27.48692278,233.38,233.24,3.2]
[1732128752416,27.48692278,233.34,233.18,5.6503]
[1732128753519,2.1409,233.3,233.21,2.1417]
[1732128753818,27.48692278,233.38,233.18,5.6503]
[1732128754519,27.48692278,233.42,233.18,5.6503]
[1732128754720,3.18,233.45,233.27,27.48692278]
[1732128754919,3.18,233.45,233.28,3.18]
[1732128755119,3.18,233.45,233.28,5.745]
[1732128755319,27.48692278,233.43,233.3,2.1408]
[1732128755521,27.48692278,233.43,233.28,5.745]
[1732128755825,2.14,233.39,233.31,2.1408]
[1732128756027,27.48692278,233.43,233.31,2.1408]
[1732128756327,27.48692278,233.43,233.28,5.745]
[1732128756623,27.48692278,233.39,233.28,5.745]
[1732128757526,27.48692278,233.39,233.28,3.18]
[1732128758021,17.37150627,233.38,233.23,3.18]
[1732128758322,9.53007961,233.38,233.23,3.18]
[1732128758519,2.1405,233.34,233.26,2.1412]
[1732128758921,27.48692278,233.39,233.26,2.1412]
[1732128759227,2.1407,233.32,233.25,2.1413]
[1732128759422,27.48692278,233.39,233.23,3.18]
[1732128759624,17.3764252,233.38,233.23,3.18]
[1732128759926,27.48692278,233.39,233.22,3.18]
[1732128760122,17.37634585,233.38,233.22,3.18]
[1732128760319,7.84361862,233.37,233.22,3.18]
[1732128760520,27.48692278,233.39,233.22,3.18]
[1732128760822,27.48692278,233.35,233.22,3.18]
[1732128761220,27.48692278,233.31,233.19,2.565]
[1732128761419,27.48692278,233.31,233.18,2.4503]
[1732128761820,2.1416,233.23,233.18,2.4503]
[1732128762427,2.1418,233.23,233.18,2.4503]
[1732128762625,7.84606439,233.3,233.18,2.4503]
[1732128763027,2.1419,233.21,233.18,2.4503]
[1732128764025,27.48692278,233.31,233.18,2.4503]
[1732128764527,27.48692278,233.31,233.18,4.5925]
[1732128764528,2.1417,233.24,233.18,4.5925]
[1732128764733,27.48692278,233.31,233.18,4.5925]
[1732128764933,27.48692278,233.31,233.18,2.4503]
[1732128765130,27.95732278,233.35,233.18,2.4503]
[1732128765332,17.38246006,233.34,233.18,2.4503]
[1732128765536,27.95732278,233.35,233.18,2.4503]
[1732128765829,9.53643662,233.34,233.18,2.4503]
[1732128766128,27.95732278,233.35,233.18,2.4503]
[1732128766325,27.48692278,233.31,233.18,2.4503]
[1732128767325,20.56740724,233.3,233.15,3.18]
[1732128767528,3.18,233.3,233.13,2.4417]
[1732128767725,3.18,233.3,233.14,3.18]
[1732128768129,2.1415,233.26,233.16,2.1423]
[1732128768327,3.18,233.3,233.14,3.18]
[1732128768734,27.95732278,233.35,233.16,27.48692278]
[1732128769337,27.95732278,233.35,233.21,2.1419]
[1732128769338,2.1413,233.28,233.21,2.1419]
[1732128769628,27.95732278,233.35,233.21,3.18]
[1732128770230,27.95732278,233.35,233.22,2.1417]
[1732128770430,27.95732278,233.35,233.21,3.18]
[1732128770636,2.1413,233.28,233.22,2.1418]
[1732128771030,2.1413,233.28,233.21,3.18]
[1732128771430,2.1413,233.28,233.23,2.1417]
[1732128772734,16.93014801,233.36,233.25,2.1415]
[1732128773037,16.93014801,233.36,233.22,2.5604]
[1732128773240,9.54398904,233.35,233.22,2.5604]
[1732128773737,16.93014801,233.36,233.22,4.7022]
[1732128773738,2.1409,233.32,233.22,4.7022]
[1732128773938,17.39690606,233.35,233.22,4.7022]
[1732128774134,2.15350984,233.38,233.18,3.18]
[1732128774135,16.93014801,233.32,233.18,3.18]
[1732128774330,16.93014801,233.32,233.19,2.1421]
[1732128774529,16.93014801,233.32,233.18,3.18]
[1732128776033,2.1416,233.25,233.2,2.142]
[1732128777239,2.1416,233.25,233.18,3.18]
[1732128777240,2.1416,233.25,233.21,2.1419]
[1732128777638,16.93014801,233.32,233.21,2.1419]
[1732128777839,16.93014801,233.32,233.2,2.142]
[1732128778039,2.141,233.31,233.18,3.18]
[1732128778534,2.141,233.31,233.25,2.1415]
[1732128778843,16.93014801,233.36,233.18,3.18]
[1732128779335,16.93014801,233.4,233.2,16.93014801]
[1732128779541,17.40688052,233.39,233.21,2.5607]
[1732128779740,2.1411,233.3,233.26,2.1414]
[1732128779940,2.1411,233.3,233.25,3.18]
[1732128780142,2.15910829,233.38,233.25,3.18]
[1732128780333,2.1413,233.29,233.25,3.18]
[1732128780738,2.16507369,233.37,233.25,3.18]
[1732128780942,16.93014801,233.36,233.25,3.18]
[1732128781245,17.40716478,233.35,233.2,3.18]
[1732128781540,16.93014801,233.32,233.2,3.18]